Cogmind - Beta 13 @@@ ROGUE MODE // 2024.05.16 @ 01:03:10 Player: GFYguy Result: Destroyed by YI-UF0 with YI-UF0's Doublenader Performance ------------- Evolutions (0) 0 Regions Visited (2) 400 Robots Destroyed (13) 65 Value Destroyed (305) 305 Prototype IDs (0) 0 Alien Tech Used (0) 0 Bonus (0) 0 TOTAL SCORE: 770 Bonus ------- None Cogmind --------- Core Integrity 0/250 Matter 141/300 Energy 86/100 System Corruption 0% Temperature Cool (0) Movement Treading (160) Location -10/Mines Parts ------- > --- POWER (1) -------- (None) > --- PROPULSION (2) --- Light Treads Light Treads > --- UTILITY (2) ------ Large Storage Unit > --- WEAPON (2) ------- Beamcaster > --- INVENTORY (15) --- Carbon-fiber Leg Titanium Leg Improved Heat Sink High-capacity Storage Unit Weight Redist. System Signal Interpreter Transport Network Coupler Mining Laser Peak State ------------ > --- POWER ------------ Light Nuclear Core > --- PROPULSION ------- Light Treads Light Treads > --- UTILITY ---------- Large Storage Unit Terrain Scanner > --- WEAPON ----------- Beamcaster Grenade Launcher > --- INVENTORY -------- Ion Engine Light Treads Light Treads Carbon-fiber Leg Titanium Leg Improved Heat Sink High-capacity Storage Unit Weight Redist. System Signal Interpreter Transport Network Coupler Grenade Launcher Mining Laser Mining Laser [Rating: 15] Favorites ----------- Power Light Nuclear Core Engine Light Ion Engine Power Core Light Nuclear Core Propulsion Light Treads Treads Light Treads Leg Aluminum Leg Utility Large Storage Unit Device Terrain Scanner Storage Large Storage Unit Weapon Grenade Launcher Energy Gun Beamcaster Ballistic Gun Light Assault Rifle Launcher Grenade Launcher Special Weapon Mining Laser Build | -11 -10 -10 ------- Run | Yrd Mat Min Slots Evolved . | . . . Power . | . . . Propulsion . | . . . Utility . | . . . Weapon . | . . . Parts Attached 26 | 8 10 8 Power 3 | 1 1 1 Engine 2 | 1 . 1 Core 1 | . 1 . Reactor . | . . . Propulsion 8 | 4 2 2 Treads 6 | 2 2 2 Leg 2 | 2 . . Wheel . | . . . Hover . | . . . Flight . | . . . Utility 6 | 1 5 . Device 1 | . 1 . Storage 5 | 1 4 . Processor . | . . . Hackware . | . . . Protection . | . . . Artifact . | . . . Weapon 9 | 2 2 5 Energy Gun 2 | . . 2 Energy Cannon . | . . . Ballistic Gun 2 | 2 . . Ballistic Cannon . | . . . Launcher 3 | . 2 1 Special Weapon 2 | . . 2 Impact Weapon . | . . . Slashing Weapon . | . . . Piercing Weapon . | . . . Special Melee Weapon . | . . . Unidentified Prototypes . | . . . Parts Lost 8 | . . 8 Power 2 | . . 2 Propulsion 2 | . . 2 Utility 1 | . . 1 Weapon 3 | . . 3 Highest Loss Streak 5 | . . 5 To Critical Strikes . | . . . Average Slot Usage (%) 97 | . 97 96 Engine 7 | . 7 8 Core 6 | . 6 5 Treads 27 | . 28 27 Device 12 | . 12 13 Storage 14 | . 14 14 Energy Gun 2 | . . 7 Ballistic Gun 10 | . 16 . Launcher 10 | . 11 8 Special Weapon 3 | . . 10 Naked Turns . | . . . Heaviest Build 32 | 11 32 32 Greatest Support 40 | 40 40 40 Greatest Overweight (x) 2 | 2 . 1 Average Overweight (x) . | . . . Largest Inventory Capacity 20 | 8 20 15 Average Capacity 14 | 7 14 15 Most Carried 15 | 4 15 15 Average Carried 8 | . 7 11 Final Capacity 15 | 8 15 15 Final Carried 15 | . 15 8 Class Distribution -------------------- 100% | Mutant Dominant Class ---------------- Mutant | -10/Materials Mutant | -10/Mines Resources | -11 -10 -10 ----------- Run | Yrd Mat Min Matter Collected 525 | 148 276 101 Remotely . | . . . Salvage Created 398 | . 323 75 Parts 28 | . 23 5 Haulers Intercepted 1 | . 1 . Recyclers Shooed . | . . . Parts Field Recycled . | . . . Retrieved Matter . | . . . Parts Self-Destructed . | . . . Prevented . | . . . Kills | -11 -10 -10 ------- Run | Yrd Mat Min Combat Hostiles Destroyed 27 | . 4 23 Guns 6 | . 4 2 Cannons 1 | . . 1 AOE 20 | . . 20 Classes Destroyed 7 | . 5 2 Builder 1 | . 1 . Hauler 1 | . 1 . Recycler 1 | . 1 . Watcher 2 | . 2 . Swarmer 2 | . . 2 Grunt 6 | . 4 2 Assembled 19 | . . 19 Best Kill Streak 20 | . 4 20 Combat Bots Only 20 | . 3 20 Max Kills in Single Turn 6 | . 2 6 Gunslinging . | . . . Exploded 6 | . . 6 Melee . | . . . Uniques/NPCs Destroyed . | . . . Combat | -11 -10 -10 -------- Run | Yrd Mat Min Hostile Shots Fired 87 | . 31 56 Missed 21 | . 12 9 Damage Taken 1174 | . 209 965 Core 270 | . 22 248 Absorbed by Shields . | . . . Core Remaining (%) 100 | 100 . . Volleys Fired 49 | . 30 19 Largest 2 | . 2 2 Hottest 200 | . 60 200 Shots Fired 86 | . 60 26 Gun 64 | . 58 6 Cannon . | . . . Launcher 18 | . 2 16 Special 4 | . . 4 Kinetic 58 | . 58 . Thermal 10 | . . 10 Explosive 18 | . 2 16 Electromagnetic . | . . . Robot Hit Streak 12 | . 12 9 Robot Miss Streak 4 | . 4 1 Penetration Max . | . . . Secondary Targets . | . . . Shots Hit Robots 51 | . 41 10 Core Hits 63 | . 19 44 Critical Kills 1 | . 1 . Critical Parts Destroyed . | . . . Critical Strikes 2 | . 1 1 Burn 1 | . . 1 Destroy 1 | . 1 . Melee Attacks . | . . . Impact . | . . . Slashing . | . . . Piercing . | . . . Sneak Attacks . | . . . Combat Hostiles . | . . . Follow-up Attacks . | . . . Damage Inflicted 1685 | . 481 1204 Guns 491 | . 407 84 Cannons . | . . . Explosions 1146 | . 74 1072 Melee . | . . . Ramming . | . . . Kinetic 407 | . 407 . Thermal 132 | . . 132 Explosive 1146 | . 74 1072 Electromagnetic . | . . . Impact . | . . . Slashing . | . . . Piercing . | . . . Highest Corruption . | . . . Average Corruption . | . . . Corruption Purged . | . . . Corruption Blocked . | . . . Overload Shots . | . . . Overflow Damage . | . . . Projectiles . | . . . Explosions . | . . . Melee . | . . . Knockbacks . | . . . Impact . | . . . Kinetic . | . . . Secondary . | . . . Self-Inflicted Damage . | . . . Shots . | . . . Rammed . | . . . Targets Rammed . | . . . Kicked . | . . . Crushed . | . . . Highest Temperature 203 | . 12 203 Average Temperature 42 | . 6 56 Received Heat Transfer 177 | . 120 57 Siege Activations . | . . . Robots Corrupted . | . . . Combat Hostiles . | . . . Parts Fried . | . . . Impact Corruptions . | . . . Robots Melted . | . . . Combat Hostiles . | . . . Parts Melted 1 | . . 1 Heat Transferred 322 | . . 322 Parts Sabotaged . | . . . Parts Stolen . | . . . Parts Stripped . | . . . Power Chain Reactions . | . . . Alert | -11 -10 -10 ------- Run | Yrd Mat Min Peak Influence 165 | . 109 165 Initial 14 | . . 14 Average 62 | . 39 121 Maximum Alert Level . | . . . Low Security (%) 100 | 100 100 100 Level 1 . | . . . Level 2 . | . . . Level 3 . | . . . Level 4 . | . . . Level 5 . | . . . High Security . | . . . Max Security . | . . . Squads Dispatched . | . . . Investigation . | . . . Extermination . | . . . Reinforcement . | . . . Assault . | . . . Garrison . | . . . Intercept . | . . . Searches Triggered . | . . . Construction Impeded . | . . . Haulers Reinforced . | . . . Active Scanning Responses . | . . . Cargo Convoy Interrupts . | . . . Stealth | -11 -10 -10 --------- Run | Yrd Mat Min Distress Signals 1 | . 1 . Communications Jammed . | . . . Distress Signals . | . . . Times Spotted 30 | . 6 24 Peak Tracking Total 16 | . 4 16 Tactical Retreats 1 | . . 1 Traps | -11 -10 -10 ------- Run | Yrd Mat Min Traps Triggered . | . . . Indirectly . | . . . Trap Hack Attempts . | . . . Triggered . | . . . Disarmed . | . . . Reprogrammed . | . . . Reused . | . . . Traps Extracted . | . . . Installed . | . . . Triggered . | . . . Machines | -11 -10 -10 ---------- Run | Yrd Mat Min Machines Disabled 1 | . . 1 Max in Single Turn 1 | . . 1 Machines Repaired . | . . . Machines Dismantled . | . . . Machines Sabotaged . | . . . Overloaded Fab Kills . | . . . Hacking | -11 -10 -10 --------- Run | Yrd Mat Min Machines Accessed 2 | . 1 1 Terminals . | . . . Fabricators . | . . . Repair Stations . | . . . Recycling Units 1 | . 1 . Scanalyzers . | . . . Garrison Access . | . . . Total Hacks 7 | . 6 1 Successful 4 | . 3 1 Failed 3 | . 3 . Catastrophic . | . . . Database Lockouts . | . . . Manual . | . . . Terminals . | . . . Fabricators . | . . . Repair Stations . | . . . Recycling Units 6 | . 6 . Scanalyzers . | . . . Garrison Access . | . . . Terminal Hacks 1 | . . 1 Open Door 1 | . . 1 Fabricator Hacks . | . . . Repair Station Hacks . | . . . Recycling Unit Hacks 3 | . 3 . Process 1 | . 1 . Report Inventory 1 | . 1 . Retrieve Matter 1 | . 1 . Scanalyzer . | . . . Garrison Access Hacks . | . . . Unauthorized Hacks . | . . . Terminals . | . . . Fabricators . | . . . Repair Stations . | . . . Recycling Units . | . . . Scanalyzers . | . . . Garrison Access . | . . . Data Cores Recovered . | . . . Used . | . . . Hacking Detections 1 | . 1 . Full Trace Events . | . . . Feedback Events . | . . . Feedback Blocked . | . . . Robot Schematics Acquired . | . . . Robots Built . | . . . Authchips . | . . . Time . | . . . Total Robot Build Rating . | . . . Part Schematics Acquired . | . . . Parts Built . | . . . Authchips . | . . . Time . | . . . Total Part Build Rating . | . . . Parts Repaired . | . . . Time . | . . . Parts Recycled . | . . . Recycled Matter 32 | . 32 . Retrieved Matter 32 | . 32 . Retrieved Components . | . . . Parts Scanalyzed . | . . . Part Schematics Acquired . | . . . Parts Damaged . | . . . Bothacking | -11 -10 -10 ------------ Run | Yrd Mat Min Used RIF Installer . | . . . Robots Hacked . | . . . Non-combat . | . . . Combat . | . . . Robot Hacks Applied . | . . . Relay Couplers Released . | . . . Fabnet Peak Effective % . | . . . Robots Rewired . | . . . Allies Hacked . | . . . Hacks Repelled . | . . . Allies | -11 -10 -10 -------- Run | Yrd Mat Min Total Allies . | . . . Largest Group . | . . . Highest-Rated Group . | . . . Highest-Rated Ally . | . . . Total Orders . | . . . Ally Attacks . | . . . Total Damage . | . . . Kills . | . . . Allies Corrupted . | . . . Allies Melted . | . . . Intel | -11 -10 -10 ------- Run | Yrd Mat Min Robot Analysis Total . | . . . Derelict Logs Recovered . | . . . Drone Launches . | . . . Drone Recoveries . | . . . Exploration | -11 -10 -10 ------------- Run | Yrd Mat Min Turns Passed 963 | 88 561 314 Spaces Moved 469 | 52 265 152 Core 15 | 15 . . Treads 447 | 30 265 152 Legs 7 | 7 . . Wheels . | . . . Hover . | . . . Flight . | . . . Fastest Speed 50 | 50 160 160 Average Speed 157 | 138 160 160 Slowest Speed 240 | 160 160 240 Overloaded Moves . | . . . Propulsion Burnouts . | . . . Robots Hopped . | . . . Cave-ins Triggered . | . . . Exploration Rate (%) 29 | 6 43 39 Regions Visited 2 Branch Regions 1 Pre-discovered Areas . | . . . Known Exits Taken . | . . . Unknown Exits Taken 2 | 1 1 . Scrap Searched . | . . . Spaces Dug . | . . . Terrain Destroyed 92 | . 14 78 Melee . | . . . Projectile 1 | . . 1 AOE 91 | . 14 77 Terrain Rammed . | . . . Walls Destroyed . | . . . Machines Disabled . | . . . Actions | -11 -10 -10 --------- Run | Yrd Mat Min Total 606 | 69 347 190 Wait 20 | . 19 1 Move 467 | 51 264 152 Hop . | . . . Pick Up 31 | 8 19 4 Fast Attach . | . . . Attach 15 | 8 2 5 Detach . | . . . Swap 11 | . 8 3 Drop 13 | 2 5 6 Fire 49 | . 30 19 Melee . | . . . Ram . | . . . Kick . | . . . Crush . | . . . Escape Stasis . | . . . Rewire . | . . . Trap . | . . . Miscellaneous . | . . . Route ------- -11/Scrapyard -10/Materials (discovered 2 exits: [*Mat] / *Min) -10/Mines History --------- Turn | Location | Event 5 | -11/Scrapyard | Discovered new exit (range 16) 89 | -11/Scrapyard | Entered Materials 300 | -10/Materials | Build established: Mutant 456 | -10/Materials | Discovered new exit (range 11) 604 | -10/Materials | Discovered new exit (range 7) 650 | -10/Materials | Entered Mines 655 | -10/Mines | Met a Derelict who couldn't figure out how to use a Trap Extractor 717 | -10/Mines | Assembled infested the area 765 | -10/Mines | Destroyed 20 combat bots 955 | -10/Mines | Core integrity fell below 50% 963 | -10/Mines | Core integrity fell below 20% 964 | -10/Mines | Destroyed by YI-UF0 with YI-UF0's Doublenader Last Messages --------------- [Achievement: Killing Spree] The unstable cave ceiling collapses. K-01 Serf collects debris. The unstable cave ceiling collapses. Grenade Launcher destroyed. The unstable cave ceiling collapses. Lgt. Nuclear Core destroyed. as-56237 destroyed. R-06 Scavenger collects Flight Unit. R-06 Scavenger collects Lgt. Assault Rifle. The unstable cave ceiling collapses. YI-UF0 mumbles something. Lgt. Treads destroyed. The unstable cave ceiling collapses. Terrain Scanner destroyed. Ion Engine destroyed. Lgt. Treads destroyed. The unstable cave ceiling collapses. Mining Laser destroyed. The unstable cave ceiling collapses. Map ----- +----------------------------------------------------+ | | | | | | | | | | | | | | | | | | | | | | | | | | | ????????????????????????????????????????????????? | | ??????????????????????##??###???#?????????#?????? | | ??????????????????????# #???????????????????? | | ?????????????????????## """ #???#?#?#???????????? | | ?????????????????????? """ #??????????????#????? | | ???????????????????#??# """ #???????????#?#????#? | | ???????????????????# ?# #???#????????###????? | | ???????????????????# ## ### ##????????????### | | ???????????????????# # ###??????#??### | | ?????????????????# # # #?????????## | | ??????????????????# #???#?????# | | ????????? # #g # ##????????# | | ????????? ! @ #????????## | | ???????????# #########?# | | ????????? ## #?## | | ??????????## # ######### #?# | | ??????????# ???# ### # # ##???????# ### | | ????????????????#???#### #####??#?????# | | ??????????????????????# ?????#??????# #### # | | ?????????????????????## ???#????#?#?# #??# ## | | ?????????????????????# ??###???#??# #### #? | | ????????????????????## ??#?##??#??# #### #? | | ??????????????????#?? ## #??##????## #? | | ?????????????????? #?##??????????###### #? | | ??????????????????? ### #??########????#?#?# ## | | ????????????????????# # ?## """"##?#??????# ## | | ????????????????????# # "!/= #????#?### ## | | ????????????????????# # [!/"#??#??##?# | | ??????????????????### # !!!^##??##????#### | | ???????????????????# # #! /[###???#???#### | | ???????????????????# = ! #??#??????# | | ????????????????????# ! ##??####### | | ??????????????????????## [ #### # # | | ??????????????????????### ## ## | | ????????????????????????## | | ?????????????????????????#### ! | | ????????????????????#???????# ##### # # | +----------------------------------------------------+ Best States ------------- Heat Dissipation 25 Energy Generation 14 Energy Capacity 250 Matter Stores 300 Matter Capacity 300 Sight Range 16 Terrain Scan Range 14 Terrain Scan Density 10 Evasion (%) 45 Recoil Reduction 2 Item Schematics ----------------- None Robot Schematics ------------------ None Fabricated ------------ Nothing Alien Tech Used ----------------- None Achievements -------------- Exterminator Killing Spree Quick And Dirty Challenges ------------ None Game ------ Seed TrapDataRedirector Manual? 0 Play Time 00:10:48 Cumulative 13.9 hours Start 2024.05.16 @ 00:53:35 End 2024.05.16 @ 01:03:10 Sessions 1 Manual Loads 0 Difficulty Rogue Special Mode None Game No. 18 Rogue 18 Adventurer 0 Explorer 0 Win Type - Total 0 Types 0/0/0/0/0/0/0/0/0 Lore% 13 Gallery% 19 Achievement% 18 Wizard Run 0 Options --------- Layout 1 ASCII 0 Keyboard 0 Movement Mouse Keybinds 0 Fullscreen 2 Font 24/Smallcaps Map View 50x35 Zoom Use 0% Tactical HUD 0 Map Filters NONE Filters NONE Steam 1 RUN: 0553a25a-74dd-4d05-848c-028f3d21ef2b